[Event "Dutch Open 2022"]
[Site "Dieren"]
[Date "2022.07.27"]
[Round "2.13"]
[White "Op den Dries, Johan"]
[Black "Vos, Tjark"]
[Result "1/2-1/2"]
[ECO "A03"]
[WhiteElo "2104"]
[BlackElo "2224"]
[Annotator "TA"]
[PlyCount "84"]
[EventDate "2022.07.14"]
[EventType "swiss"]
[EventCountry "NED"]
[SourceTitle "playchess.com"]
[Source "ChessBase"]
[SourceQuality "1"]
[TimeControl "40/5400+30:1800+30"]

{[%evp 18,84,-8,-17,-20,-23,-12,-25,-31,-20,-27,-31,-22,-28,-29,-32,-23,-26,-12,-142,-96,-91,-101,-146,-52,-131,-102,-134,-87,-86,-94,-294,-275,-285,-272,-431,-66,-69,-70,-72,-68,-95,-91,-92,0,0,0,0,0,-119,-120,-100,-42,-48,0,0,0,0,0,0,0,0,0,0,0,0,0,0,0]} 1. d4 {[%emt 0:00:02]} Nf6 {[%emt 0:02:01]} 2. e3 {[%emt 0:00:08]} g6 {[%emt 0:00:13]} 3. f4 {[%emt 0:00:24]} Bg7 {[%emt 0:00:22]} 4. Nf3 {[%emt 0:00:10]} c5 {[%emt 0:00:45]} 5. c3 {[%emt 0:00:16]} O-O {[%emt 0:01:13]} 6. Bd3 {[%emt 0:00:21]} d5 {[%emt 0:00:43]} 7. O-O {[%emt 0:00:14]} b6 {[%emt 0:00:20]} 8. Ne5 {[%emt 0:01:50]} Ba6 {[%emt 0:02:46]} 9. Bxa6 {[%emt 0:03:27]} Nxa6 {[%emt 0:00:16]} 10. Nd2 {[%emt 0:00:03]} Nc7 {[%emt 1:26:51] A03: Bird's Opening with 1...d5.} 11. Qf3 {[%emt 0:01:26]} e6 {[%emt 0:00:00]} 12. b3 {[%emt 0:01:17]} Nb5 {[%emt 0:00:00] Black has an edge.} 13. Bb2 {[%emt 0:00:36]} Nd6 {[%emt 0:00:00] [#]} 14. c4 $146 {[%emt 0:04:16]} ({Predecessor:} 14. Ng4 Nxg4 15. Qxg4 Rc8 16. Rac1 b5 17. Ba3 b4 18. Bb2 Qa5 19. a4 bxa3 20. Ba1 cxd4 21. b4 Qc7 22. Rc2 Nf5 {0-1 (22) Rehtman,P (2046)-Bleker,F (2139) ICCF email 2007}) 14... cxd4 {[%emt 0:00:00]} 15. Bxd4 {[%emt 0:03:21]} Rc8 {[%emt 0:00:00]} 16. Rfd1 {[%emt 0:01:51]} Qe7 {[%emt 0:00:00]} 17. Rac1 {[%emt 0:02:28]} Nf5 {[%emt 0:00:00]} 18. cxd5 {[%emt 0:05:31]} (18. Bb2 $11) 18... Nxd4 {[%emt 0:00:00]} ({Not} 18... exd5 19. g4 Nh4 20. Qe2 $11) (18... Nxd5 $142 19. g3 Rfd8) 19. exd4 $17 {[%emt 0:00:08]} Nxd5 {[%emt 0:00:00]} 20. Ne4 {[%emt 0:02:19]} Qb4 {[%emt 0:00:00]} (20... Rxc1 $1 $17 21. Rxc1 f6) 21. Nc6 {[%emt 0:14:30]} (21. Qf2 $1 $15) 21... Qa3 {[%emt 0:00:00][%cal Og7d4]} 22. Qf2 {[%emt 0:03:02]} Rc7 {[%emt 0:00:00]} (22... f5 $142 23. Ng5 Qd6) 23. Rc4 {[%emt 0:04:19]} Ra8 {[%emt 0:00:00]} 24. g3 $2 {[%emt 0:02:35]} (24. Ne5 $17 {was worth a try.}) 24... b5 $1 $19 {[%emt 0:00:00]} 25. Rc5 {[%emt 0:02:54]} Bf8 $1 {[%emt 0:00:00]} 26. Rc2 {[%emt 0:00:27]} (26. Ne5 $142 Bxc5 27. dxc5) 26... Qa6 $2 {[%emt 0:00:00]} ({Black should play} 26... Rac8 $19 27. Rdc1 Rxc6 28. Rxc6 Qxc1+ 29. Rxc1 Rxc1+ 30. Kg2 Rc2 $3 {[%mdl 512]} 31. Qxc2 (31. Nf6+ $2 Kh8 $19) 31... Ne3+ 32. Kf3 Nxc2) 27. Ne5 $1 $15 {[%emt 0:01:43]} Rxc2 {[%emt 0:00:00]} 28. Qxc2 {[%emt 0:00:03]} Rc8 {[%emt 0:00:52]} 29. Qe2 {[%emt 0:00:18]} f5 {[%emt 0:00:34]} 30. Nc5 {[%emt 0:05:04]} Bxc5 {[%emt 0:00:20]} (30... Rxc5 $17 31. dxc5 Nc3) 31. dxc5 $11 {[%emt 0:00:06]} Nc3 {[%emt 0:01:37]} 32. Qd3 {[%emt 0:00:12]} Nxd1 {[%emt 0:00:05]} 33. Qxd1 {[%emt 0:01:29][%mdl 4096] Endgame [#] KQR-KQN} (33. Qd7 $1 $11 Rf8 34. Qxd1) 33... Qb7 $1 $17 {[%emt 0:01:16]} ({Much weaker is} 33... Qxa2 $6 34. Qd7 Qb1+ 35. Kg2 $11) 34. c6 {[%emt 0:01:21]} Qb6+ {[%emt 0:00:53]} 35. Kf1 $1 {[%emt 0:00:18]} Rd8 {[%emt 0:00:29] Inhibits Qd7.} (35... Qd8 $15 {is more appropriate.} 36. Qd7 Qxd7 37. cxd7 Rd8) 36. Nd7 $1 $36 {[%emt 0:01:44][%mdl 2048] White fights for an advantage. The position is equal.} Qc7 {[%emt 0:03:41]} (36... Qxc6 $5 37. Nf6+ Kf7 38. Qxd8 Qc1+ 39. Kf2 Qb2+ 40. Kf3 Qc3+ 41. Kg2 Qb2+ 42. Kh3 Qxf6 43. Qd7+ Qe7 44. Qxb5 g5 $11) 37. Qd4 {[%emt 0:00:12]} Qxc6 {[%emt 0:00:21]} 38. Nf6+ {[%emt 0:00:47][%mdl 64] Discovered Attack} Kf7 {[%emt 0:00:03]} 39. Qxd8 {[%emt 0:00:10] aiming for Qg8+.} Qh1+ {[%emt 0:01:08]} 40. Kf2 {[%emt 0:07:06]} Qxh2+ {[%emt 0:00:06]} 41. Kf3 {[%emt 0:30:04] Intending Qe8+ and mate.} Qh1+ {[%emt 0:30:21]} 42. Kf2 {[%emt 0:00:04] White wants to mate with Qe8+.} Qh2+ {[%emt 0:00:18] Weighted Error Value: White=0.30/Black=0.28 (precise)} 1/2-1/2

[Event "Dutch Open 2022"]
[Site "Dieren"]
[Date "2022.07.27"]
[Round "2.14"]
[White "Albers, Sasa"]
[Black "Labruyere, Roger"]
[Result "1-0"]
[ECO "B40"]
[WhiteElo "2203"]
[BlackElo "2070"]
[Annotator "TA"]
[PlyCount "123"]
[EventDate "2022.07.14"]
[EventType "swiss"]
[EventCountry "NED"]
[SourceTitle "playchess.com"]
[Source "ChessBase"]
[SourceQuality "1"]
[TimeControl "40/5400+30:1800+30"]

{[%evp 15,123,14,31,26,29,12,10,-16,-2,-20,-12,-11,-5,-45,-16,-14,-7,-9,-13,-4,0,0,0,0,33,28,44,29,49,40,49,12,12,12,19,12,12,12,12,0,10,6,16,8,7,9,43,38,44,43,43,43,43,43,43,42,37,12,50,44,41,42,62,62,62,62,91,84,122,117,114,99,99,99,99,99,99,79,99,87,87,87,186,99,168,168,168,168,170,170,168,167,171,171,2795,1880,4165,2031,29982,29983,29983,29978,29984,29985,29985,29986,29986,29984,29983,29984]} 1. e4 {[%emt 0:00:03]} c5 {[%emt 0:00:03]} 2. Nf3 {[%emt 0:00:07]} e6 {[%emt 0:00:04]} 3. d4 {[%emt 0:00:16]} cxd4 {[%emt 0:00:04]} 4. Nxd4 {[%emt 0:00:07]} Nf6 {[%emt 0:00:03]} 5. Bd3 {[%emt 0:00:20]} Nc6 {[%emt 0:01:03]} 6. Nxc6 {[%emt 0:00:19]} dxc6 {[%emt 0:00:15]} 7. O-O {[%emt 0:02:42]} e5 {[%emt 0:02:15]} 8. Nd2 {[%emt 0:00:33]} Bd6 {[%emt 0:02:11]} 9. Nc4 {[%emt 0:07:35] B40: Sicilian: 2...e6, Unusual lines.} Bc7 {[%emt 0:00:09]} 10. Bg5 {[%emt 0:01:57]} h6 {[%emt 0:07:58]} 11. Bh4 {[%emt 0:01:04] The position is equal.} g5 {[%emt 0:02:56]} 12. Bg3 {[%emt 0:00:18]} Qe7 $1 {[%emt 0:00:04]} 13. Qd2 {[%emt 0:22:07]} Nh5 {[%emt 0:03:27] [#]} 14. Ne3 $146 {[%emt 0:14:20]} ({Predecessor:} 14. a4 Nxg3 15. fxg3 Be6 16. Kh1 Rd8 17. Ne3 O-O 18. Qe2 f6 19. Bc4 Bxc4 20. Qxc4+ {1-0 (33) Honari,K-Rashid,A Iran 1997}) 14... Nf4 {[%emt 0:18:38]} 15. Rfe1 {[%emt 0:00:11]} (15. Bc4 {keeps more tension.} h5 16. Rad1 h4 17. Nf5) 15... O-O {[%emt 0:07:45]} 16. Qc3 {[%emt 0:11:36]} Nxd3 {[%emt 0:02:09]} (16... Bb6 {looks sharper.} 17. Nf5 Bxf5 18. exf5 Nxd3 19. Qxd3 f6) 17. cxd3 {[%emt 0:00:15]} Re8 {[%emt 0:13:39]} 18. Nc4 {[%emt 0:08:18]} c5 {[%emt 0:11:59]} 19. Ne3 {[%emt 0:04:49]} Qd6 {[%emt 0:02:22]} 20. Rac1 {[%emt 0:02:47][%cal Ba1c1,Bc1c5,Bc5c6][%mdl 32]} b6 {[%emt 0:04:46]} 21. b4 {[%emt 0:06:06]} f6 {[%emt 0:03:40]} 22. bxc5 {[%emt 0:07:16]} (22. Nd5 {is interesting.} Bd8 23. bxc5 bxc5 24. Qa3) 22... bxc5 {[%emt 0:00:08]} 23. Qxc5 {[%emt 0:00:44]} Qxc5 {[%emt 0:00:07]} 24. Rxc5 {[%emt 0:00:03]} Bb6 {[%emt 0:00:14]} 25. Rc6 {[%emt 0:00:20]} Re6 {[%emt 0:01:56]} 26. Rec1 {[%emt 0:00:24]} Bd7 {[%emt 0:00:50]} 27. R6c2 {[%emt 0:01:11]} Rd6 {[%emt 0:04:02]} 28. Nd5 {[%emt 0:00:22]} Kf7 {[%emt 0:01:05]} 29. Kf1 {[%emt 0:03:41]} Be6 {[%emt 0:02:09]} 30. Nc7 {[%emt 0:02:19]} Bxc7 {[%emt 0:03:14]} 31. Rxc7+ {[%emt 0:00:01]} Kg6 {[%emt 0:01:06]} 32. R1c6 {[%emt 0:00:29]} Rxc6 {[%emt 0:01:46]} 33. Rxc6 $14 {[%emt 0:00:02][%mdl 4096] Endgame KRB-KRB} Kf7 {[%emt 0:00:10]} 34. Ra6 {[%emt 0:01:16]} Bc8 {[%emt 0:01:42]} 35. Ra5 {[%emt 0:00:54]} a6 {[%emt 0:00:17]} 36. Ke2 {[%emt 0:00:28]} Ra7 {[%emt 0:00:27]} 37. f3 {[%emt 0:01:11]} Rb7 {[%emt 0:00:54]} 38. Be1 {[%emt 0:02:06]} Rb5 {[%emt 0:01:57]} 39. Rxb5 {[%emt 0:00:47]} axb5 {[%emt 0:00:03] KB-KB} 40. Kd2 {[%emt 0:00:33]} h5 {[%emt 0:00:35]} 41. Kc3 {[%emt 0:05:12]} Ke6 {[%emt 0:01:03]} 42. Kb4 {[%emt 0:00:26]} Bd7 {[%emt 0:00:08]} 43. Kc5 {[%emt 0:00:19]} h4 {[%emt 0:01:53]} 44. g3 {[%emt 0:05:03]} hxg3 {[%emt 0:00:21]} 45. hxg3 {[%emt 0:02:23]} Be8 {[%emt 0:02:11]} 46. Bd2 {[%emt 0:00:23]} Bd7 {[%emt 0:06:58]} 47. f4 {[%emt 0:05:54]} gxf4 {[%emt 0:01:24]} 48. gxf4 {[%emt 0:00:27]} Be8 {[%emt 0:01:00]} (48... f5 $16) 49. a3 {[%emt 0:01:01]} ({White should try} 49. f5+ $18 Ke7 50. Bb4) 49... f5 {[%emt 0:04:02]} (49... exf4 $16 {was worth a try.} 50. Bxf4 Bd7) 50. fxe5 $1 $18 {[%emt 0:00:33]} Kxe5 {[%emt 0:14:07]} 51. Bc3+ $1 {[%emt 0:00:15]} Ke6 {[%emt 0:00:33] [#]} 52. e5 {[%emt 0:00:08] aiming for d4.} f4 {[%emt 0:00:21]} 53. d4 {[%emt 0:00:12][%cal Bd3d4,Bd4d5][%mdl 32] Threatens to win with d5+.} f3 {[%emt 0:01:09] [#]} 54. Be1 {[%emt 0:00:21]} Bd7 $2 {[%emt 0:02:13]} (54... Bg6 55. Bf2 (55. Kxb5 Kd5 $16) 55... Bf5 56. Kxb5 Kd5) 55. Bg3 {[%emt 0:00:23] White threatens d5+ and mate.} Be8 {[%emt 0:01:14]} 56. d5+ {[%emt 0:00:33]} Ke7 {[%emt 0:00:42]} 57. Bh4+ {[%emt 0:00:13] White mates.} Kd7 {[%emt 0:00:12]} 58. Kxb5 {[%emt 0:00:17]} Bf7 {[%emt 0:00:22]} 59. e6+ {[%emt 0:00:23]} Bxe6 {[%emt 0:00:04]} 60. dxe6+ {[%emt 0:00:05]} Kxe6 {[%emt 0:00:02]} 61. Kb6 {[%emt 0:00:14]} Kd7 {[%emt 0:00:05]} 62. Kb7 {[%emt 0:00:07] Weighted Error Value: White=0.07 (flawless) /Black=0.25 (precise)} 1-0

[Event "Dutch Open 2022"]
[Site "Dieren"]
[Date "2022.07.27"]
[Round "2.15"]
[White "Bus, Tom"]
[Black "Pijkeren, Jan"]
[Result "1-0"]
[ECO "B38"]
[WhiteElo "2102"]
[BlackElo "2196"]
[Annotator "TA"]
[PlyCount "151"]
[EventDate "2022.07.14"]
[EventType "swiss"]
[EventCountry "NED"]
[SourceTitle "playchess.com"]
[Source "ChessBase"]
[SourceQuality "1"]
[TimeControl "40/5400+30:1800+30"]

{[%evp 22,151,62,52,45,48,47,42,58,65,49,51,75,44,72,0,13,0,0,0,35,41,102,91,83,73,68,69,79,80,70,25,41,17,44,30,132,76,97,52,76,32,63,19,62,37,34,8,88,88,121,109,103,81,74,52,58,59,58,62,55,11,11,11,11,13,13,12,12,12,31,30,30,29,29,29,36,4,28,0,0,0,0,0,0,0,8,16,449,431,514,494,1118,1059,1199,918,1476,1430,3793,3909,8639,5654,6721,6633,29936,29953,29962,29966,29966,29950,6203,6201,29973,29974,29974,29972,29979,29980,29982,29977,29977,29975,29974,29974,29973,29974,29980,29981,29981,29981,29981,29982]} 1. d4 {[%emt 0:00:09] Tsesarsky,I} Nf6 {[%emt 0:00:16]} 2. Nf3 {[%emt 0:00:36]} g6 {[%emt 0:01:43]} 3. c4 {[%emt 0:00:47]} c5 {[%emt 0:00:20]} 4. Nc3 {[%emt 0:03:57]} cxd4 {[%emt 0:02:02]} 5. Nxd4 {[%emt 0:00:08]} Nc6 {[%emt 0:01:38]} 6. e4 {[%emt 0:01:02]} d6 {[%emt 0:04:17]} 7. Be2 {[%emt 0:01:50]} Bg7 {[%emt 0:05:03]} 8. Be3 {[%emt 0:00:51]} Bd7 {[%emt 0:04:08]} 9. O-O {[%emt 0:01:11]} O-O {[%emt 0:00:08]} 10. Qd2 {[%emt 0:00:34]} a6 {[%emt 0:14:28]} 11. f3 {[%emt 0:08:21]} Rb8 {[%emt 0:00:15]} 12. Rfd1 {[%emt 0:05:08]} b5 {[%emt 0:03:19] B38: Sicilian: Maroczy Bind with 5...Bg7 and 7...0-0.} 13. cxb5 {[%emt 0:01:08]} (13. Nxc6 {seems wilder.} Bxc6 14. cxb5 axb5 15. b4) 13... Nxd4 {[%emt 0:00:18]} 14. Bxd4 {[%emt 0:00:12]} (14. Qxd4 Ng4 $1 15. Qd3 Nxe3 16. Qxe3 axb5 $15) 14... Bxb5 {[%emt 0:05:37] White is slightly better.} 15. Nxb5 {[%emt 0:07:57]} axb5 {[%emt 0:00:13]} 16. Qb4 {[%emt 0:00:54]} Nd7 {[%emt 0:03:15][%cal Bf6d7,Bd7e5,Be5c4][%mdl 32] [#]} 17. Bxg7 $146 {[%emt 0:01:53] 0x0.00144d5e6515dp-1022s more active pieces.} (17. Bxb5 Bxd4+ 18. Rxd4 Qb6 19. Bxd7 (19. a4 e5 $17) 19... Qxb4 20. Rxb4 Rxb4 $17) ({Predecessor:} 17. Be3 Nc5 18. Rac1 Qb6 19. Rc2 h5 20. f4 Qb7 21. Bf3 Qa6 22. b3 Rfc8 23. e5 {½-½ (49) Horvath,G (2450)-Anastasian,A (2550) Budapest 1996 EXT 2020 [Tsesarsky,I]}) 17... Kxg7 {[%emt 0:00:07]} 18. Kh1 {[%emt 0:00:29]} ({White should try} 18. Rd5 $16) 18... Qb6 $1 $11 {[%emt 0:01:10]} 19. Rac1 {[%emt 0:03:42]} Ne5 {[%emt 0:15:29]} 20. f4 {[%emt 0:24:32]} Nc4 {[%emt 0:08:36]} 21. b3 {[%emt 0:04:55]} Qf2 {[%emt 0:15:30]} ({Better is} 21... Qe3 $14) 22. Bf3 $16 {[%emt 0:04:43][%cal Be2f3,Bf3g2,Bg2f1][%mdl 32]} ({Don't play} 22. bxc4 $6 Qxe2 23. Re1 Qd3 $11) ({Much weaker is} 22. Bxc4 $6 bxc4 23. Qc3+ (23. Qxc4 Rfc8 $15) 23... f6 $11) 22... Nb6 {[%emt 0:00:37]} 23. Qc3+ {[%emt 0:03:57]} Kg8 {[%emt 0:01:08]} 24. Rd2 {[%emt 0:00:22]} Qh4 {[%emt 0:01:45] Strongly threatening ...Rfc8.} 25. g3 {[%emt 0:01:45]} Qh3 {[%emt 0:00:05]} 26. Bg2 {[%emt 0:03:23]} Qc8 {[%emt 0:02:17]} 27. Rdc2 {[%emt 0:04:18]} Qa6 {[%emt 0:01:33] Inhibits Qa5.} 28. Bf1 {[%emt 0:01:33]} Qb7 {[%emt 0:04:20]} (28... Qa8 $11 {remains equal.}) 29. Qb4 {[%emt 0:08:51]} (29. Bxb5 $6 Qxe4+ 30. Kg1 Nd5 $11) (29. Qd4 $142) 29... Rfc8 {[%emt 0:00:09]} 30. Bg2 {[%emt 0:01:12]} ({But not} 30. Bxb5 Rxc2 31. Rxc2 Nd5 $11) 30... Qa6 {[%emt 0:00:51]} 31. Rxc8+ {[%emt 0:00:52]} Nxc8 {[%emt 0:01:07]} 32. Rc2 {[%emt 0:00:58]} Nb6 {[%emt 0:01:20]} 33. h3 {[%emt 0:00:22]} Nd7 {[%emt 0:00:19]} 34. Kh2 {[%emt 0:01:32][%cal Oe4e5]} Qb6 {[%emt 0:01:00]} (34... Qa7 $11 {keeps the balance.}) 35. e5 $1 {[%emt 0:01:09]} Nc5 {[%emt 0:01:54]} 36. exd6 $1 {[%emt 0:00:21]} exd6 {[%emt 0:00:03]} 37. Qd4 {[%emt 0:00:28]} b4 {[%emt 0:00:27]} 38. Bd5 {[%emt 0:01:22]} Ne6 {[%emt 0:01:05] [#]} 39. Rc8+ $1 {[%emt 0:01:22]} Nf8 {[%emt 0:00:07]} 40. Qxb6 {[%emt 0:00:59]} Rxb6 $14 {[%emt 0:00:05][%mdl 4096] Endgame KRB-KRN} 41. Ra8 {[%emt 0:06:41]} Rb5 $1 {[%emt 0:02:11]} 42. Bc4 {[%emt 0:00:58]} Rc5 {[%emt 0:00:13]} 43. Rd8 {[%emt 0:00:55][%cal Ba8d8,Bd8d6,Bd6b6][%mdl 32]} Ra5 {[%emt 0:09:16]} 44. Rxd6 {[%emt 0:01:06]} Rxa2+ {[%emt 0:00:04]} 45. Kg1 {[%emt 0:00:06]} Rb2 {[%emt 0:00:34]} 46. Rb6 {[%emt 0:01:03]} Ne6 $1 {[%emt 0:02:24]} 47. Bxe6 {[%emt 0:04:47]} fxe6 {[%emt 0:00:09]} 48. Rxb4 $11 {[%emt 0:00:23] KR-KR} Kf7 {[%emt 0:01:05]} 49. Rb6 {[%emt 0:03:13]} h6 {[%emt 0:10:53]} 50. h4 {[%emt 0:04:33]} h5 {[%emt 0:02:46]} 51. Kf1 {[%emt 0:00:46]} Kf6 {[%emt 0:01:22]} 52. Rb5 {[%emt 0:00:18]} Rc2 {[%emt 0:01:43]} 53. b4 {[%emt 0:00:39][%cal Bb3b4,Bb4b5][%mdl 32] And now Rc5 would win.} Rb2 {[%emt 0:00:10]} 54. Ke1 {[%emt 0:00:13]} Rg2 $2 {[%emt 0:00:48][%mdl 8192] [#] Loses the game.} (54... Rb1+ $11 {and Black has nothing to worry.} 55. Kf2 Rb3) 55. Rg5 $1 $18 {[%emt 0:00:13]} e5 {[%emt 0:04:54]} 56. fxe5+ {[%emt 0:00:39]} Ke6 {[%emt 0:00:04]} (56... Kf7 $142 57. b5 Rc2) 57. b5 {[%emt 0:00:15]} Rb2 {[%emt 0:00:20]} 58. Rxg6+ {[%emt 0:02:50]} Kxe5 {[%emt 0:00:08]} 59. Rg5+ {[%emt 0:00:32]} Ke4 {[%emt 0:00:49]} 60. Rxh5 {[%emt 0:00:53]} Ke3 {[%emt 0:00:34]} 61. Re5+ {[%emt 0:00:53]} Kd4 {[%emt 0:00:09]} 62. Rg5 {[%emt 0:00:13] h5 would kill now.} Ke3 {[%emt 0:00:15]} 63. Kf1 {[%emt 0:00:29]} Kf3 {[%emt 0:00:45]} 64. Kg1 {[%emt 0:00:30]} Rg2+ {[%emt 0:01:03] [#]} 65. Kh1 $1 {[%emt 0:01:02]} Rd2 {[%emt 0:00:18]} 66. h5 {[%emt 0:00:30][%cal Bh4h5,Bh5h6][%mdl 32] White threatens b6 and mate.} Re2 {[%emt 0:00:33]} 67. b6 {[%emt 0:00:50] White mates.} Rb2 {[%emt 0:01:10]} 68. Rg6 {[%emt 0:00:15]} Rb5 {[%emt 0:00:24]} 69. h6 {[%emt 0:01:09]} Kf2 {[%emt 0:00:05]} 70. Rf6+ {[%emt 0:02:48]} Kxg3 {[%emt 0:00:08]} 71. Rg6+ {[%emt 0:00:21]} Kf3 {[%emt 0:01:18]} 72. Kh2 {[%emt 0:01:13]} Kf4 {[%emt 0:00:33]} 73. Rf6+ {[%emt 0:01:47]} Kg4 {[%emt 0:00:30]} 74. Kg2 {[%emt 0:00:46]} Rb2+ {[%emt 0:00:25]} 75. Kf1 {[%emt 0:00:08]} Kg5 {[%emt 0:00:31]} 76. Rc6 {[%emt 0:00:06] Weighted Error Value: White=0.14 (very precise) /Black=0.41} 1-0